[Event "Early-Titled-Tuesday-Blitz-July-09-2024"]
[Site "Chess.com"]
[Date "2024.07.09"]
[Round "6"]
[White "aquarium76"]
[Black "Kildepiotr"]
[Result "1/2-1/2"]
[WhiteElo "3001"]
[BlackElo "2698"]
[TimeControl "180+1"]
[EndTime "9:10:16 PDT"]
[Termination "Game drawn - insufficient material"]

1. d4 {[%clk 0:03:00.9]} 1... d5 {[%clk 0:02:59.9]} 2. c4 {[%clk 0:03:01]} 2...
c6 {[%clk 0:03:00.4]} 3. Nf3 {[%clk 0:03:00.2]} 3... Nf6 {[%clk 0:03:00.5]} 4.
Nc3 {[%clk 0:03:00.5]} 4... dxc4 {[%clk 0:03:00.4]} 5. a4 {[%clk 0:02:59.5]}
5... Bf5 {[%clk 0:02:59.8]} 6. Ne5 {[%clk 0:02:59.7]} 6... Nbd7 {[%clk
0:02:59.3]} 7. Nxc4 {[%clk 0:03:00.1]} 7... Nb6 {[%clk 0:02:59.5]} 8. Ne5 {[%clk
0:02:58.9]} 8... a5 {[%clk 0:02:59.7]} 9. e3 {[%clk 0:02:54.2]} 9... e6 {[%clk
0:02:54.6]} 10. f3 {[%clk 0:02:17.1]} 10... Bb4 {[%clk 0:02:53.1]} 11. Kf2
{[%clk 0:02:06.4]} 11... Nfd7 {[%clk 0:02:37.4]} 12. e4 {[%clk 0:01:59]} 12...
Nxe5 {[%clk 0:02:24.3]} 13. exf5 {[%clk 0:01:39.5]} 13... Ned7 {[%clk
0:02:10.8]} 14. fxe6 {[%clk 0:01:30.4]} 14... fxe6 {[%clk 0:02:11.7]} 15. g3
{[%clk 0:01:27.4]} 15... O-O {[%clk 0:02:09.9]} 16. Kg2 {[%clk 0:01:20.2]} 16...
e5 {[%clk 0:02:05]} 17. Be3 {[%clk 0:00:56.7]} 17... Bxc3 {[%clk 0:01:55.5]} 18.
bxc3 {[%clk 0:00:55.8]} 18... Nd5 {[%clk 0:01:55.8]} 19. Bf2 {[%clk 0:00:51.5]}
19... Qg5 {[%clk 0:01:38.6]} 20. Bc4 {[%clk 0:00:38.8]} 20... Kh8 {[%clk
0:01:35]} 21. Re1 {[%clk 0:00:36.4]} 21... Nxc3 {[%clk 0:01:27.4]} 22. Qc1
{[%clk 0:00:26]} 22... Qxc1 {[%clk 0:01:17.6]} 23. Rexc1 {[%clk 0:00:11.9]}
23... Nxa4 {[%clk 0:01:02.3]} 24. Be6 {[%clk 0:00:12.1]} 24... Nab6 {[%clk
0:01:02]} 25. dxe5 {[%clk 0:00:10.7]} 25... Rae8 {[%clk 0:00:44.5]} 26. Bxd7
{[%clk 0:00:07.4]} 26... Nxd7 {[%clk 0:00:44.2]} 27. f4 {[%clk 0:00:07.8]} 27...
Nxe5 {[%clk 0:00:40.3]} 28. fxe5 {[%clk 0:00:07.1]} 28... Rxe5 {[%clk
0:00:41.2]} 29. Rab1 {[%clk 0:00:07.6]} 29... Re2 {[%clk 0:00:38.9]} 30. Rf1
{[%clk 0:00:07.2]} 30... b5 {[%clk 0:00:37.8]} 31. Kg1 {[%clk 0:00:07.6]} 31...
a4 {[%clk 0:00:18.7]} 32. Rbc1 {[%clk 0:00:07.7]} 32... Rf6 {[%clk 0:00:16.1]}
33. Bd4 {[%clk 0:00:07.3]} 33... Rxf1+ {[%clk 0:00:14.5]} 34. Kxf1 {[%clk
0:00:07.6]} 34... Re6 {[%clk 0:00:14.4]} 35. Bc5 {[%clk 0:00:07.8]} 35... h6
{[%clk 0:00:13.4]} 36. Re1 {[%clk 0:00:06.8]} 36... Rf6+ {[%clk 0:00:11.6]} 37.
Kg2 {[%clk 0:00:07.1]} 37... Rf5 {[%clk 0:00:11.8]} 38. Rc1 {[%clk 0:00:07.3]}
38... Rd5 {[%clk 0:00:11.8]} 39. Be7 {[%clk 0:00:07.4]} 39... Kg8 {[%clk
0:00:11.6]} 40. Rxc6 {[%clk 0:00:07.2]} 40... Rd2+ {[%clk 0:00:11.2]} 41. Kh3
{[%clk 0:00:07.1]} 41... Rb2 {[%clk 0:00:10.6]} 42. Rb6 {[%clk 0:00:06.8]} 42...
Rb3 {[%clk 0:00:10.5]} 43. Ra6 {[%clk 0:00:07.3]} 43... Kf7 {[%clk 0:00:10.1]}
44. Bc5 {[%clk 0:00:07.6]} 44... h5 {[%clk 0:00:09.6]} 45. Ra7+ {[%clk
0:00:06.6]} 45... Ke6 {[%clk 0:00:08.7]} 46. Rxg7 {[%clk 0:00:06.1]} 46... Kd5
{[%clk 0:00:09.2]} 47. Rg5+ {[%clk 0:00:05.9]} 47... Kc4 {[%clk 0:00:09.7]} 48.
Rxh5 {[%clk 0:00:06.3]} 48... a3 {[%clk 0:00:09.9]} 49. Bf8 {[%clk 0:00:03.7]}
49... a2 {[%clk 0:00:09.1]} 50. Bg7 {[%clk 0:00:04]} 50... Rb1 {[%clk
0:00:07.7]} 51. Rh4+ {[%clk 0:00:03]} 51... Kc5 {[%clk 0:00:07.6]} 52. Rh5+
{[%clk 0:00:03.2]} 52... Kc4 {[%clk 0:00:07.2]} 53. Rh8 {[%clk 0:00:03.6]} 53...
a1=Q {[%clk 0:00:06.9]} 54. Bxa1 {[%clk 0:00:03.1]} 54... Rxa1 {[%clk
0:00:07.8]} 55. Rc8+ {[%clk 0:00:03.4]} 55... Kd4 {[%clk 0:00:08.4]} 56. Rb8
{[%clk 0:00:03.8]} 56... Kc4 {[%clk 0:00:09]} 57. Kg4 {[%clk 0:00:04.3]} 57...
b4 {[%clk 0:00:09.4]} 58. h4 {[%clk 0:00:04.5]} 58... b3 {[%clk 0:00:09.7]} 59.
h5 {[%clk 0:00:05]} 59... Kc3 {[%clk 0:00:09.2]} 60. Kg5 {[%clk 0:00:04.8]}
60... Ra5+ {[%clk 0:00:08.9]} 61. Kh4 {[%clk 0:00:04.3]} 61... Ra4+ {[%clk
0:00:09.3]} 62. g4 {[%clk 0:00:04.8]} 62... Rb4 {[%clk 0:00:09.9]} 63. Rc8+
{[%clk 0:00:04.7]} 63... Kd2 {[%clk 0:00:10.1]} 64. Rd8+ {[%clk 0:00:05.2]}
64... Ke2 {[%clk 0:00:10.6]} 65. Re8+ {[%clk 0:00:04.9]} 65... Kf2 {[%clk
0:00:11.1]} 66. Rf8+ {[%clk 0:00:05.1]} 66... Kg2 {[%clk 0:00:11.7]} 67. Rd8
{[%clk 0:00:04.1]} 67... b2 {[%clk 0:00:11.9]} 68. Rd1 {[%clk 0:00:04.3]} 68...
b1=Q {[%clk 0:00:11.7]} 69. Rxb1 {[%clk 0:00:04.7]} 69... Rxb1 {[%clk
0:00:12.6]} 70. h6 {[%clk 0:00:05.3]} 70... Rh1+ {[%clk 0:00:12.6]} 71. Kg5
{[%clk 0:00:05.8]} 71... Kf3 {[%clk 0:00:13.3]} 72. Kg6 {[%clk 0:00:05.7]} 72...
Kxg4 {[%clk 0:00:13.7]} 73. h7 {[%clk 0:00:06.4]} 73... Rxh7 {[%clk 0:00:13.5]}
74. Kxh7 {[%clk 0:00:06.9]} 1/2-1/2

[Event "Early-Titled-Tuesday-Blitz-July-09-2024"]
[Site "Chess.com"]
[Date "2024.07.09"]
[Round "6"]
[White "JavierRuizVazquez"]
[Black "yesilikeorangejuice"]
[Result "0-1"]
[WhiteElo "2390"]
[BlackElo "2527"]
[TimeControl "180+1"]
[EndTime "9:10:18 PDT"]
[Termination "yesilikeorangejuice won by resignation"]

1. e4 {[%clk 0:03:00.9]} 1... e6 {[%clk 0:02:57.9]} 2. Nc3 {[%clk 0:02:58.2]}
2... d5 {[%clk 0:02:54.3]} 3. Nf3 {[%clk 0:02:58.3]} 3... Nf6 {[%clk 0:02:53.7]}
4. exd5 {[%clk 0:02:55.5]} 4... exd5 {[%clk 0:02:53.6]} 5. d4 {[%clk 0:02:56.1]}
5... Bd6 {[%clk 0:02:53.9]} 6. Bd3 {[%clk 0:02:53.7]} 6... O-O {[%clk
0:02:52.9]} 7. O-O {[%clk 0:02:54.2]} 7... c5 {[%clk 0:02:53.1]} 8. dxc5 {[%clk
0:02:53.7]} 8... Bxc5 {[%clk 0:02:53.1]} 9. Bg5 {[%clk 0:02:53.8]} 9... Be7
{[%clk 0:02:51.4]} 10. Re1 {[%clk 0:02:51.2]} 10... h6 {[%clk 0:02:50.8]} 11.
Bh4 {[%clk 0:02:49.3]} 11... Nc6 {[%clk 0:02:50.5]} 12. h3 {[%clk 0:02:46.6]}
12... Kh8 {[%clk 0:02:44.7]} 13. Qd2 {[%clk 0:02:21.3]} 13... Be6 {[%clk
0:02:40.7]} 14. Rad1 {[%clk 0:02:19.7]} 14... Rc8 {[%clk 0:02:40.4]} 15. a3
{[%clk 0:02:10.9]} 15... a6 {[%clk 0:02:35]} 16. Bf1 {[%clk 0:02:10.3]} 16...
Qd7 {[%clk 0:02:18.1]} 17. Nd4 {[%clk 0:02:05.6]} 17... Nxd4 {[%clk 0:02:14.2]}
18. Qxd4 {[%clk 0:02:06.5]} 18... Rfd8 {[%clk 0:02:13.6]} 19. Bd3 {[%clk
0:01:54.4]} 19... b5 {[%clk 0:02:05.4]} 20. Qf4 {[%clk 0:01:44]} 20... Ng8
{[%clk 0:01:43.9]} 21. Bxe7 {[%clk 0:01:41.2]} 21... Nxe7 {[%clk 0:01:44.8]} 22.
Ne2 {[%clk 0:01:34]} 22... Nc6 {[%clk 0:01:33.3]} 23. Qg3 {[%clk 0:01:31.9]}
23... Bf5 {[%clk 0:01:30.2]} 24. Nf4 {[%clk 0:01:27.6]} 24... Bxd3 {[%clk
0:01:23.9]} 25. Rxd3 {[%clk 0:01:28.5]} 25... Qf5 {[%clk 0:01:21.1]} 26. Red1
{[%clk 0:01:17.9]} 26... d4 {[%clk 0:01:17.3]} 27. Ne2 {[%clk 0:01:12.4]} 27...
Kh7 {[%clk 0:01:14.6]} 28. R1d2 {[%clk 0:00:39.7]} 28... Re8 {[%clk 0:00:50.8]}
29. Nxd4 {[%clk 0:00:33.1]} 29... Nxd4 {[%clk 0:00:51.7]} 30. Rxd4 {[%clk
0:00:33.7]} 30... Rxc2 {[%clk 0:00:52.3]} 31. Rxc2 {[%clk 0:00:29.5]} 31... Qxc2
{[%clk 0:00:53.2]} 32. Qd3+ {[%clk 0:00:29.2]} 32... Qxd3 {[%clk 0:00:51.2]} 33.
Rxd3 {[%clk 0:00:30.1]} 33... Re1+ {[%clk 0:00:51.8]} 34. Kh2 {[%clk 0:00:29.2]}
34... Re2 {[%clk 0:00:52.5]} 35. Rd6 {[%clk 0:00:21.1]} 35... a5 {[%clk
0:00:45.2]} 36. b4 {[%clk 0:00:17.5]} 36... axb4 {[%clk 0:00:43.7]} 37. axb4
{[%clk 0:00:18.4]} 37... Re4 {[%clk 0:00:44.3]} 38. Rd7 {[%clk 0:00:17.4]} 38...
f6 {[%clk 0:00:43.4]} 39. Kg3 {[%clk 0:00:17.5]} 39... Rxb4 {[%clk 0:00:43.7]}
40. Rb7 {[%clk 0:00:17.8]} 40... Kg6 {[%clk 0:00:43.6]} 41. f3 {[%clk 0:00:16]}
41... Rb2 {[%clk 0:00:43.3]} 42. h4 {[%clk 0:00:14.7]} 42... h5 {[%clk
0:00:42.9]} 43. Kh3 {[%clk 0:00:14.6]} 43... b4 {[%clk 0:00:43.2]} 44. Kg3
{[%clk 0:00:14.7]} 44... b3 {[%clk 0:00:43.3]} 45. Rb5 {[%clk 0:00:13.4]} 45...
Rb1 {[%clk 0:00:42.9]} 46. Kh3 {[%clk 0:00:13.6]} 46... b2 {[%clk 0:00:43.3]}
47. Kg3 {[%clk 0:00:13.2]} 47... Kf7 {[%clk 0:00:40.2]} 48. Rb6 {[%clk
0:00:12.7]} 48... g6 {[%clk 0:00:38.4]} 49. Kh2 {[%clk 0:00:11.9]} 49... Ke7
{[%clk 0:00:34.7]} 50. g3 {[%clk 0:00:11.2]} 50... Kd7 {[%clk 0:00:34.1]} 51.
Kg2 {[%clk 0:00:10.8]} 51... Kc7 {[%clk 0:00:34.4]} 52. Rb3 {[%clk 0:00:10.8]}
52... Kc6 {[%clk 0:00:34]} 53. Rb8 {[%clk 0:00:10.9]} 53... Kc5 {[%clk
0:00:33.9]} 54. Rb3 {[%clk 0:00:11.4]} 54... Kc4 {[%clk 0:00:32.1]} 55. Rb8
{[%clk 0:00:11.9]} 55... g5 {[%clk 0:00:30.5]} 56. Rc8+ {[%clk 0:00:11]} 56...
Kd3 {[%clk 0:00:30.5]} 57. Rd8+ {[%clk 0:00:11.2]} 57... Ke3 {[%clk 0:00:30.4]}
58. Re8+ {[%clk 0:00:11.7]} 58... Kd4 {[%clk 0:00:31]} 59. Rd8+ {[%clk
0:00:12.3]} 59... Ke5 {[%clk 0:00:31.5]} 60. Re8+ {[%clk 0:00:12.2]} 60... Kf5
{[%clk 0:00:31.9]} 61. Rb8 {[%clk 0:00:12.2]} 61... g4 {[%clk 0:00:25.2]} 62.
Rb5+ {[%clk 0:00:11.5]} 62... Kg6 {[%clk 0:00:24.6]} 63. f4 {[%clk 0:00:11]}
63... Kf7 {[%clk 0:00:21.5]} 64. Rb6 {[%clk 0:00:10]} 64... Ke7 {[%clk
0:00:21.4]} 65. Rb5 {[%clk 0:00:09.9]} 65... Kd6 {[%clk 0:00:20.5]} 66. Rb6+
{[%clk 0:00:09.9]} 66... Kd5 {[%clk 0:00:20.8]} 67. Rb8 {[%clk 0:00:10.1]} 67...
Ke4 {[%clk 0:00:16.1]} 68. Rb4+ {[%clk 0:00:09.9]} 68... Kd3 {[%clk 0:00:14.8]}
69. Rb8 {[%clk 0:00:09.5]} 69... Re1 {[%clk 0:00:09.9]} 70. Rxb2 {[%clk
0:00:06.3]} 70... Re2+ {[%clk 0:00:10.4]} 71. Rxe2 {[%clk 0:00:06.5]} 71... Kxe2
{[%clk 0:00:11.3]} 72. Kg1 {[%clk 0:00:06.8]} 72... Kf3 {[%clk 0:00:11.3]} 73.
Kh2 {[%clk 0:00:07.1]} 73... Kf2 {[%clk 0:00:11.9]} 74. f5 {[%clk 0:00:06.8]}
74... Kf3 {[%clk 0:00:12.5]} 75. Kg1 {[%clk 0:00:06.7]} 75... Kxg3 {[%clk
0:00:13.2]} 0-1

[Event "Early-Titled-Tuesday-Blitz-July-09-2024"]
[Site "Chess.com"]
[Date "2024.07.09"]
[Round "6"]
[White "pinelone"]
[Black "Knightmare1014"]
[Result "0-1"]
[WhiteElo "2378"]
[BlackElo "2272"]
[TimeControl "180+1"]
[EndTime "9:10:22 PDT"]
[Termination "Knightmare1014 won by checkmate"]

1. Nf3 {[%clk 0:03:00.9]} 1... d5 {[%clk 0:02:51.6]} 2. d4 {[%clk 0:03:00.7]}
2... Nf6 {[%clk 0:02:49.7]} 3. c4 {[%clk 0:03:00.5]} 3... e6 {[%clk 0:02:49.8]}
4. e3 {[%clk 0:03:00.2]} 4... Be7 {[%clk 0:02:49]} 5. b3 {[%clk 0:02:57.5]} 5...
O-O {[%clk 0:02:48.6]} 6. Bb2 {[%clk 0:02:57.6]} 6... b6 {[%clk 0:02:48.7]} 7.
Nc3 {[%clk 0:02:51.9]} 7... c5 {[%clk 0:02:48.3]} 8. cxd5 {[%clk 0:02:50]} 8...
exd5 {[%clk 0:02:48.2]} 9. Bd3 {[%clk 0:02:48.4]} 9... Ba6 {[%clk 0:02:48.2]}
10. Bxa6 {[%clk 0:02:41.1]} 10... Nxa6 {[%clk 0:02:49.1]} 11. O-O {[%clk
0:02:41]} 11... Rc8 {[%clk 0:02:48.9]} 12. Rc1 {[%clk 0:02:33.5]} 12... Nb4
{[%clk 0:02:20.3]} 13. dxc5 {[%clk 0:02:30]} 13... bxc5 {[%clk 0:02:18.2]} 14.
a3 {[%clk 0:02:19.3]} 14... Nc6 {[%clk 0:02:17.9]} 15. Na4 {[%clk 0:02:17.1]}
15... Ne4 {[%clk 0:02:02.7]} 16. Nd2 {[%clk 0:02:16.7]} 16... Na5 {[%clk
0:01:41.3]} 17. Nxe4 {[%clk 0:01:58.6]} 17... dxe4 {[%clk 0:01:41.3]} 18. Qc2
{[%clk 0:01:58.9]} 18... Bf6 {[%clk 0:01:27.9]} 19. Bxf6 {[%clk 0:01:41.4]}
19... Qxf6 {[%clk 0:01:27.9]} 20. Nxc5 {[%clk 0:01:29.9]} 20... Rxc5 {[%clk
0:01:26.8]} 21. Qxc5 {[%clk 0:01:29.7]} 21... Nxb3 {[%clk 0:01:27.4]} 22. Qxa7
{[%clk 0:01:26]} 22... Nxc1 {[%clk 0:01:25.7]} 23. Rxc1 {[%clk 0:01:26]} 23...
Qb2 {[%clk 0:01:18]} 24. Qc5 {[%clk 0:01:15.7]} 24... h6 {[%clk 0:01:14]} 25. a4
{[%clk 0:01:12.4]} 25... Ra8 {[%clk 0:01:13]} 26. a5 {[%clk 0:01:09]} 26... Qa2
{[%clk 0:01:08.8]} 27. g4 {[%clk 0:01:00.7]} 27... Qxa5 {[%clk 0:00:56.6]} 28.
Qxa5 {[%clk 0:01:00.4]} 28... Rxa5 {[%clk 0:00:56.6]} 29. Kg2 {[%clk 0:00:50.3]}
29... g6 {[%clk 0:00:48.4]} 30. Rc4 {[%clk 0:00:48.2]} 30... Re5 {[%clk
0:00:47.7]} 31. Kg3 {[%clk 0:00:46.9]} 31... g5 {[%clk 0:00:42.1]} 32. h4 {[%clk
0:00:46.7]} 32... Kg7 {[%clk 0:00:41.4]} 33. Rc6 {[%clk 0:00:37.4]} 33... Rd5
{[%clk 0:00:27.1]} 34. h5 {[%clk 0:00:31.7]} 34... Re5 {[%clk 0:00:27]} 35. Rb6
{[%clk 0:00:31.7]} 35... Re7 {[%clk 0:00:26.1]} 36. Rb4 {[%clk 0:00:22.5]} 36...
Re5 {[%clk 0:00:25.7]} 37. f3 {[%clk 0:00:20.3]} 37... exf3 {[%clk 0:00:25.3]}
38. Kxf3 {[%clk 0:00:21]} 38... Re6 {[%clk 0:00:25.5]} 39. Re4 {[%clk
0:00:20.3]} 39... Rf6+ {[%clk 0:00:25.4]} 40. Kg3 {[%clk 0:00:20.2]} 40... Ra6
{[%clk 0:00:25.2]} 41. Rd4 {[%clk 0:00:17.5]} 41... Ra3 {[%clk 0:00:24.6]} 42.
Kf3 {[%clk 0:00:17.5]} 42... Ra1 {[%clk 0:00:24.8]} 43. Rd2 {[%clk 0:00:14.8]}
43... Ra4 {[%clk 0:00:23.4]} 44. Re2 {[%clk 0:00:12.1]} 44... Ra6 {[%clk
0:00:22]} 45. e4 {[%clk 0:00:11.6]} 45... Rf6+ {[%clk 0:00:21.4]} 46. Kg3 {[%clk
0:00:11.2]} 46... Rf4 {[%clk 0:00:20.6]} 47. e5 {[%clk 0:00:10.3]} 47... Ra4
{[%clk 0:00:20.6]} 48. e6 {[%clk 0:00:10.5]} 48... fxe6 {[%clk 0:00:20.9]} 49.
Rxe6 {[%clk 0:00:10.5]} 49... Ra3+ {[%clk 0:00:21.4]} 50. Kf2 {[%clk 0:00:10.6]}
50... Ra2+ {[%clk 0:00:21.6]} 51. Kf3 {[%clk 0:00:11.1]} 51... Ra3+ {[%clk
0:00:21.9]} 52. Ke4 {[%clk 0:00:11.2]} 52... Rg3 {[%clk 0:00:19.7]} 53. Kf5
{[%clk 0:00:09.8]} 53... Rf3+ {[%clk 0:00:20.1]} 54. Ke5 {[%clk 0:00:10]} 54...
Rf4 {[%clk 0:00:20.4]} 55. Re7+ {[%clk 0:00:10]} 55... Kf8 {[%clk 0:00:20.1]}
56. Rh7 {[%clk 0:00:09.8]} 56... Rxg4 {[%clk 0:00:20.2]} 57. Kf6 {[%clk
0:00:08.2]} 57... Rf4+ {[%clk 0:00:20.7]} 58. Kg6 {[%clk 0:00:08.4]} 58... g4
{[%clk 0:00:20.6]} 59. Rh8+ {[%clk 0:00:06.3]} 59... Ke7 {[%clk 0:00:20.5]} 60.
Ra8 {[%clk 0:00:05.6]} 60... g3 {[%clk 0:00:19.8]} 61. Ra1 {[%clk 0:00:04.2]}
61... g2 {[%clk 0:00:19.8]} 62. Rg1 {[%clk 0:00:03.8]} 62... Rg4+ {[%clk
0:00:19.9]} 63. Kxh6 {[%clk 0:00:04.2]} 63... Kf6 {[%clk 0:00:20]} 64. Kh7
{[%clk 0:00:04.2]} 64... Kg5 {[%clk 0:00:20.2]} 65. h6 {[%clk 0:00:03.8]} 65...
Kh4 {[%clk 0:00:20.2]} 66. Kh8 {[%clk 0:00:03.1]} 66... Kh5 {[%clk 0:00:17.6]}
67. h7 {[%clk 0:00:03.5]} 67... Kg6 {[%clk 0:00:14.6]} 68. Rb1 {[%clk
0:00:01.8]} 68... g1=Q {[%clk 0:00:12.7]} 69. Rxg1 {[%clk 0:00:01.8]} 69... Rxg1
{[%clk 0:00:12.7]} 70. Kg8 {[%clk 0:00:02.3]} 70... Kf6+ {[%clk 0:00:11.5]} 71.
Kh8 {[%clk 0:00:02]} 71... Ra1 {[%clk 0:00:10.4]} 72. Kg8 {[%clk 0:00:02.1]}
72... Ra8# {[%clk 0:00:11.3]} 0-1

[Event "Early-Titled-Tuesday-Blitz-July-09-2024"]
[Site "Chess.com"]
[Date "2024.07.09"]
[Round "6"]
[White "kuchma777"]
[Black "Karttunen"]
[Result "1/2-1/2"]
[WhiteElo "2485"]
[BlackElo "2678"]
[TimeControl "180+1"]
[EndTime "9:10:23 PDT"]
[Termination "Game drawn - insufficient material"]

1. e4 {[%clk 0:03:00.9]} 1... e5 {[%clk 0:02:54.1]} 2. Bc4 {[%clk 0:02:59.5]}
2... Nf6 {[%clk 0:02:53.2]} 3. d4 {[%clk 0:02:59.4]} 3... exd4 {[%clk
0:02:45.6]} 4. Nf3 {[%clk 0:02:58.3]} 4... d5 {[%clk 0:02:24.2]} 5. exd5 {[%clk
0:02:58]} 5... Bb4+ {[%clk 0:02:23.3]} 6. Bd2 {[%clk 0:02:50.9]} 6... Bxd2+
{[%clk 0:02:07.9]} 7. Qxd2 {[%clk 0:02:49.8]} 7... c5 {[%clk 0:02:04.5]} 8. dxc6
{[%clk 0:02:41.5]} 8... Nxc6 {[%clk 0:02:04.5]} 9. O-O {[%clk 0:02:42]} 9... O-O
{[%clk 0:02:04.4]} 10. Bb5 {[%clk 0:02:35.8]} 10... Qb6 {[%clk 0:01:51.5]} 11.
Bxc6 {[%clk 0:02:24.3]} 11... bxc6 {[%clk 0:01:51.4]} 12. Qxd4 {[%clk
0:02:16.9]} 12... c5 {[%clk 0:01:51.1]} 13. Qc3 {[%clk 0:02:12.1]} 13... Ne4
{[%clk 0:01:48.3]} 14. Qb3 {[%clk 0:02:06.7]} 14... Qc6 {[%clk 0:01:17.2]} 15.
Nbd2 {[%clk 0:01:11.1]} 15... Nxd2 {[%clk 0:00:45.8]} 16. Nxd2 {[%clk 0:01:11]}
16... Bb7 {[%clk 0:00:46.2]} 17. f3 {[%clk 0:01:09.6]} 17... Rab8 {[%clk
0:00:43.9]} 18. Qc3 {[%clk 0:01:08.1]} 18... Ba6 {[%clk 0:00:32.4]} 19. Rfd1
{[%clk 0:01:07.9]} 19... c4 {[%clk 0:00:29]} 20. Kh1 {[%clk 0:00:59.7]} 20...
Qb6 {[%clk 0:00:29.1]} 21. b3 {[%clk 0:00:56.7]} 21... cxb3 {[%clk 0:00:28.3]}
22. axb3 {[%clk 0:00:52.3]} 22... Be2 {[%clk 0:00:26.4]} 23. Re1 {[%clk
0:00:50.1]} 23... Rfe8 {[%clk 0:00:26.2]} 24. Ne4 {[%clk 0:00:47.8]} 24... Bb5
{[%clk 0:00:24.1]} 25. Rad1 {[%clk 0:00:47.1]} 25... Rbc8 {[%clk 0:00:22.3]} 26.
Qb2 {[%clk 0:00:46.1]} 26... Qe6 {[%clk 0:00:20.9]} 27. c4 {[%clk 0:00:42.8]}
27... Bc6 {[%clk 0:00:20.8]} 28. Qf2 {[%clk 0:00:32]} 28... Bxe4 {[%clk
0:00:20.1]} 29. Rxe4 {[%clk 0:00:32.9]} 29... Qa6 {[%clk 0:00:19.9]} 30. Qe3
{[%clk 0:00:28.2]} 30... Rf8 {[%clk 0:00:19.5]} 31. h3 {[%clk 0:00:27.6]} 31...
Qa3 {[%clk 0:00:19.1]} 32. Re7 {[%clk 0:00:26.6]} 32... a5 {[%clk 0:00:18.8]}
33. Rdd7 {[%clk 0:00:16]} 33... a4 {[%clk 0:00:17.6]} 34. bxa4 {[%clk
0:00:16.5]} 34... Qa1+ {[%clk 0:00:17]} 35. Kh2 {[%clk 0:00:16.3]} 35... Qxa4
{[%clk 0:00:17.9]} 36. c5 {[%clk 0:00:14.6]} 36... Qc4 {[%clk 0:00:18.3]} 37.
Qe5 {[%clk 0:00:04.7]} 37... Rxc5 {[%clk 0:00:17.7]} 38. Qd6 {[%clk 0:00:04.5]}
38... Rcc8 {[%clk 0:00:17.3]} 39. Qg3 {[%clk 0:00:03.8]} 39... h6 {[%clk
0:00:17.3]} 40. Qg4 {[%clk 0:00:04.1]} 40... Qc3 {[%clk 0:00:17]} 41. Qg3 {[%clk
0:00:04.4]} 41... Qf6 {[%clk 0:00:17.1]} 42. Re4 {[%clk 0:00:04.7]} 42... Rc5
{[%clk 0:00:17.1]} 43. Rf4 {[%clk 0:00:04.7]} 43... Qc6 {[%clk 0:00:16.9]} 44.
Rdd4 {[%clk 0:00:05]} 44... Rg5 {[%clk 0:00:17]} 45. Rg4 {[%clk 0:00:05.4]}
45... f6 {[%clk 0:00:17.2]} 46. Rxg5 {[%clk 0:00:05.6]} 46... hxg5 {[%clk
0:00:18.1]} 47. Qd6 {[%clk 0:00:05.6]} 47... Qc8 {[%clk 0:00:17.9]} 48. Qd5+
{[%clk 0:00:05.9]} 48... Kh7 {[%clk 0:00:18.1]} 49. h4 {[%clk 0:00:06.1]} 49...
gxh4 {[%clk 0:00:18]} 50. Rxh4+ {[%clk 0:00:06]} 50... Kg6 {[%clk 0:00:18.6]}
51. Qd3+ {[%clk 0:00:03.9]} 51... f5 {[%clk 0:00:18.9]} 52. Rg4+ {[%clk
0:00:04]} 52... Kh6 {[%clk 0:00:17.8]} 53. Qe3+ {[%clk 0:00:03]} 53... Kh7
{[%clk 0:00:18.2]} 54. Rh4+ {[%clk 0:00:03.1]} 54... Kg8 {[%clk 0:00:18.7]} 55.
Qb3+ {[%clk 0:00:03.4]} 55... Rf7 {[%clk 0:00:19.1]} 56. Rc4 {[%clk 0:00:03.5]}
56... Qe8 {[%clk 0:00:18.7]} 57. Qc2 {[%clk 0:00:02.7]} 57... Qe5+ {[%clk
0:00:18.7]} 58. g3 {[%clk 0:00:03]} 58... Rd7 {[%clk 0:00:18.5]} 59. Rc8+ {[%clk
0:00:03.1]} 59... Kh7 {[%clk 0:00:18.9]} 60. Rc5 {[%clk 0:00:02.3]} 60... Rd5
{[%clk 0:00:18.2]} 61. Rxd5 {[%clk 0:00:02.4]} 61... Qxd5 {[%clk 0:00:19.1]} 62.
Kg2 {[%clk 0:00:02.9]} 62... g6 {[%clk 0:00:18.5]} 63. Qe2 {[%clk 0:00:03.3]}
63... Qd6 {[%clk 0:00:17.6]} 64. Qe3 {[%clk 0:00:03.3]} 64... Kg7 {[%clk
0:00:16.9]} 65. Qc3+ {[%clk 0:00:03.1]} 65... Kf7 {[%clk 0:00:17.2]} 66. Qc4+
{[%clk 0:00:03.2]} 66... Kg7 {[%clk 0:00:17.7]} 67. Qc3+ {[%clk 0:00:03.4]}
67... Kh7 {[%clk 0:00:18]} 68. Qe3 {[%clk 0:00:03.5]} 68... Qf6 {[%clk
0:00:17.6]} 69. Kf2 {[%clk 0:00:04]} 69... g5 {[%clk 0:00:18]} 70. Qe2 {[%clk
0:00:02.9]} 70... Qd4+ {[%clk 0:00:18.1]} 71. Kg2 {[%clk 0:00:03.3]} 71... Qf6
{[%clk 0:00:16.9]} 72. Qd3 {[%clk 0:00:02.6]} 72... Kg6 {[%clk 0:00:17.2]} 73.
g4 {[%clk 0:00:02.7]} 73... Qe6 {[%clk 0:00:16.5]} 74. gxf5+ {[%clk 0:00:02.7]}
74... Qxf5 {[%clk 0:00:17.4]} 75. Qxf5+ {[%clk 0:00:03.2]} 75... Kxf5 {[%clk
0:00:18.3]} 76. Kg3 {[%clk 0:00:04]} 76... Kg6 {[%clk 0:00:18]} 77. Kg4 {[%clk
0:00:04.9]} 77... Kf6 {[%clk 0:00:18.5]} 78. Kg3 {[%clk 0:00:05.2]} 78... Kf5
{[%clk 0:00:18.7]} 79. Kf2 {[%clk 0:00:05.8]} 79... Kf4 {[%clk 0:00:19.2]} 80.
Kg2 {[%clk 0:00:06.4]} 80... g4 {[%clk 0:00:19.9]} 81. fxg4 {[%clk 0:00:07.3]}
81... Kxg4 {[%clk 0:00:20.8]} 1/2-1/2